[Event "3rd President Cup-A 2024"]
[Site "Tashkent"]
[Date "2024.11.25"]
[Round "5.10"]
[White "Sankalp Gupta"]
[Black "Tillyaev, Ulugbek"]
[Result "1-0"]
[ECO "C46"]
[WhiteElo "2539"]
[BlackElo "2303"]
[Annotator "TA"]
[PlyCount "71"]
[EventDate "2024.11.22"]
[EventType "swiss"]
[EventCountry "UZB"]
[SourceTitle "playchess.com"]
[Source "ChessBase"]
[SourceQuality "1"]
[TimeControl "5400+30"]

{[%evp 14,71,100,108,101,79,75,78,85,53,95,79,90,69,78,84,81,60,66,73,64,52,64,14,35,0,206,204,346,353,363,368,364,383,370,356,362,368,425,430,819,791,770,774,29971,29970,29975,29976,29972,5816,29987,29988,29992,29993,29993,29994,29994,29995,29995,29996]} 1. e4 {[%emt 1:31:00]} e5 {[%emt 0:03:57]} 2. Nf3 {[%emt 0:00:00]} Nc6 {[%emt 0:00:10]} 3. d4 {[%emt 0:00:00]} exd4 {[%emt 0:01:27]} 4. Nxd4 {[%emt 0:00:00]} g6 {[%emt 0:03:34]} 5. Nc3 {[%emt 0:00:00]} Bg7 {[%emt 0:00:05]} 6. Be3 {[%emt 0:00:00]} d6 {[%emt 0:02:17]} 7. Qd2 {[%emt 0:00:00]} Nge7 {[%emt 0:34:53]} 8. O-O-O {[%emt 0:00:00]} Be6 {[%emt 0:03:01]} 9. Nxe6 {[%emt 0:00:00]} fxe6 {[%emt 0:01:29]} 10. g3 {[%emt 0:00:00]} Nc8 {[%emt 0:08:48] White is better.} 11. Bh6 {[%emt 0:00:00]} Qe7 {[%emt 0:08:23]} 12. Bxg7 {[%emt 0:00:00]} Qxg7 {[%emt 0:00:01]} 13. Bh3 {[%emt 0:00:00]} Qf7 {[%emt 0:00:55]} 14. Nb5 {[%emt 0:00:00][%cal Oh3e6] Bxe6! would now be deadly.} O-O {[%emt 0:00:25]} 15. Qc3 {[%emt 0:00:00][%cal Ob5c7] Repels Nb6. aiming for Nxc7!} e5 {[%emt 0:08:53] [#]} 16. f4 $1 $36 {[%emt 0:00:00][%cal Bf2f4,Bf4e5][%mdl 2080] Black must now prevent fxe5. Keeping Black busy. White has more active pieces. The black rooks are passive.} Nb6 {[%emt 0:10:03][%cal Bc8b6,Bb6a4,Ba4c3][%mdl 32]} 17. Rhf1 {[%emt 0:00:00][%cal Bh1f1,Bf1f7,Bf7c7,Bc7b7][%mdl 32] Hoping for fxe5.} Qg7 {[%emt 0:07:33]} 18. Be6+ {[%emt 0:00:00]} (18. Kb1 $14) 18... Kh8 $11 {[%emt 0:00:00]} 19. fxe5 {[%emt 0:00:00]} (19. Qb3 {simplifies} Rf6 20. Bd5 Qd7 21. Qc3) 19... a6 $2 {[%emt 0:02:35] White leaves nothing to chance now.} (19... Na4 $11 {and Black has nothing to worry.} 20. Qa3 Rxf1 (20... Nc5 21. Bd5 $14) 21. Rxf1 Nc5) 20. Nxc7 $1 $18 {[%emt 0:00:00]} Qxc7 {[%emt 0:00:19] [#]} (20... Na4 $142 21. Qa3 Qxc7) 21. Rf7 $1 {[%emt 0:00:00][%mdl 512]} Na4 {[%emt 0:01:33]} 22. Rxc7 {[%emt 0:00:00]} Nxc3 {[%emt 0:00:02]} 23. bxc3 {[%emt 0:00:00]} Nxe5 {[%emt 0:00:44]} 24. Rxb7 {[%emt 0:00:00]} Rf6 {[%emt 0:00:39]} 25. Rxd6 {[%emt 0:00:00]} Nc4 {[%emt 0:00:42]} 26. Rd4 {[%emt 0:00:00]} ({Resist} 26. Bxc4 Rxd6 27. Bd5 Re8) 26... Ne3 {[%emt 0:00:30]} (26... Rf1+ $142 27. Rd1 Rxd1+ 28. Kxd1 Nd6) 27. Bb3 {[%emt 0:00:00] Rdd7 would kill now.} Rf1+ {[%emt 0:00:29]} 28. Kb2 {[%emt 0:00:00] White wants to mate with Rdd7.} Rf2 {[%emt 0:00:29]} 29. h4 {[%emt 0:00:00]} Ng4 {[%emt 0:00:32]} 30. Rdd7 {[%emt 0:00:00][%csl Gb7][%cal Rd7h7]} Nf6 {[%emt 0:00:06]} 31. Rf7 {[%emt 0:00:00] Intending e5 and mate.} a5 {[%emt 0:00:35][%cal Ba6a5,Ba5a4,Ba4a3][%mdl 32]} 32. e5 {[%emt 0:00:00] White mates.} a4 {[%emt 0:00:04]} 33. exf6 {[%emt 0:00:00][%csl Gb7][%cal Rf7h7]} a3+ {[%emt 0:00:21]} 34. Kc1 {[%emt 0:00:00][%csl Gb7][%cal Rf7h7]} Rf1+ {[%emt 0:00:27]} 35. Kd2 {[%emt 0:00:00][%csl Gb7][%cal Rf7h7]} Rd8+ {[%emt 0:00:03]} 36. Ke2 {[%emt 0:00:00] Weighted Error Value: White=0.09 (flawless) /Black=0.89.  Loses game:     	---       	Black=1      Mistake:       	White=1     	Black=2      Inaccurate:     	White=2     	Black=1      OK:         	White=7     	Black=7      Best:        	White=2     	Black=3      Strong:       	White=1     	---        Brilliant:      	White=1     	---} 1-0

[Event "3rd President Cup-A 2024"]
[Site "Tashkent"]
[Date "2024.11.25"]
[Round "5.11"]
[White "Poormosavi, Seyed Kian"]
[Black "Atabayev, Saparmyrat"]
[Result "0-1"]
[ECO "A30"]
[WhiteElo "2381"]
[BlackElo "2520"]
[Annotator "TA"]
[PlyCount "70"]
[EventDate "2024.11.22"]
[EventType "swiss"]
[EventCountry "UZB"]
[SourceTitle "playchess.com"]
[Source "ChessBase"]
[SourceQuality "1"]
[TimeControl "5400+30"]

{[%evp 19,70,-48,-45,-37,-22,-45,-47,-41,-41,-47,-29,-18,-23,-33,7,-25,0,-56,-14,-70,-82,-85,-74,-97,-75,-73,-66,-96,-94,-185,-186,-184,-195,-206,-208,-215,-214,-210,-198,-203,-210,-298,-252,-318,-289,-323,-322,-292,-286,-268,-285,-335,-326]} 1. Nf3 {[%emt 0:00:02]} Nf6 {[%emt 0:00:09]} 2. g3 {[%emt 0:00:08]} c5 {[%emt 0:00:28]} 3. c4 {[%emt 0:00:42]} Nc6 {[%emt 0:00:38]} 4. Bg2 {[%emt 0:00:19]} d5 {[%emt 0:00:33]} 5. cxd5 {[%emt 0:03:41]} Nxd5 {[%emt 0:00:04]} 6. O-O {[%emt 0:00:10]} e5 {[%emt 0:00:14]} 7. Nc3 {[%emt 0:00:24]} Be6 {[%emt 0:00:23]} 8. d3 {[%emt 0:02:22]} Be7 {[%emt 0:02:57]} 9. Nxd5 {[%emt 0:01:01]} Bxd5 {[%emt 0:00:21]} 10. Bd2 {[%emt 0:00:07]} O-O {[%emt 0:00:47]} 11. Bc3 {[%emt 0:01:01]} f6 {[%emt 0:10:51]} 12. a4 {[%emt 0:00:52]} Qd7 {[%emt 0:03:24]} 13. Nd2 {[%emt 0:01:38] Black is slightly better.} Be6 {[%emt 0:00:11]} 14. Nc4 {[%emt 0:01:53]} b6 {[%emt 0:04:10]} 15. Qb3 {[%emt 0:10:53]} Rab8 {[%emt 0:19:38]} 16. Qb5 {[%emt 0:06:37]} Rfc8 {[%emt 0:05:21]} 17. f4 {[%emt 0:06:31]} exf4 {[%emt 0:01:50]} 18. gxf4 {[%emt 0:01:39]} (18. Rxf4 $11 Qb7 19. Re4) 18... Nd4 {[%emt 0:04:28]} 19. Bxd4 {[%emt 0:13:01]} (19. Qxd7 $11 Bxd7 20. Bd5+ Kh8 21. e4) 19... Qxd4+ $15 {[%emt 0:00:08]} (19... cxd4 20. f5 Qxb5 21. axb5 Bxc4 22. dxc4 $11) 20. Kh1 {[%emt 0:00:07]} Kh8 {[%emt 0:08:01]} 21. Rad1 {[%emt 0:02:01]} Rd8 {[%emt 0:01:13]} 22. e3 {[%emt 0:10:19] [#]} Qd7 {[%emt 0:00:32]} 23. Qa6 {[%emt 0:03:26]} Qc7 {[%emt 0:07:31]} 24. a5 {[%emt 0:03:46]} (24. Na3 $17) 24... Bg4 $19 {[%emt 0:02:29]} 25. axb6 {[%emt 0:03:05]} axb6 {[%emt 0:00:05]} 26. Rd2 {[%emt 0:00:17]} b5 {[%emt 0:00:52]} 27. Qa5 {[%emt 0:02:55]} Qd7 {[%emt 0:06:22]} 28. Na3 {[%emt 0:00:13] [#]} c4 $1 {[%emt 0:20:50][%mdl 512]} 29. d4 {[%emt 0:00:53]} Bf8 {[%emt 0:00:00]} 30. e4 {[%emt 0:25:27] [#]} (30. Rdf2 $142) 30... c3 $1 {[%emt 0:00:00][%mdl 512] Black has a decisive advantage.} 31. Qxc3 {[%emt 0:00:00]} (31. bxc3 Ra8) 31... b4 {[%emt 0:00:00]} 32. Qg3 {[%emt 0:00:00]} bxa3 {[%emt 0:00:00]} 33. bxa3 {[%emt 0:00:00]} Be6 {[%emt 0:00:00]} 34. d5 {[%emt 0:00:00]} Qa4 {[%emt 0:00:00]} 35. Rd3 {[%emt 0:00:00]} Bd7 {[%emt 0:00:00] Weighted Error Value: White=0.26 (precise) /Black=0.10 (very precise) .  Mistake:       	White=4     	---        Inaccurate:     	White=2     	Black=2      OK:         	White=12    	Black=12     Best:        	---       	Black=1} 0-1

[Event "3rd President Cup-A 2024"]
[Site "Tashkent"]
[Date "2024.11.25"]
[Round "5.12"]
[White "Vokhidov, Shamsiddin"]
[Black "Aleksandrov, Aleksej"]
[Result "1-0"]
[ECO "C54"]
[WhiteElo "2681"]
[BlackElo "2425"]
[Annotator "TA"]
[PlyCount "77"]
[EventDate "2024.11.22"]
[EventType "swiss"]
[EventCountry "UZB"]
[SourceTitle "playchess.com"]
[Source "ChessBase"]
[SourceQuality "1"]
[TimeControl "5400+30"]

{[%evp 13,77,3,13,6,15,11,15,17,25,22,15,16,29,36,30,35,47,-7,0,0,27,26,41,51,89,100,103,94,97,114,150,135,135,134,289,268,282,274,270,290,340,326,309,229,225,236,207,137,125,118,842,830,703,841,830,833,862,833,906,912,1534,1615,2225,2244,1509,1208]} 1. e4 {[%emt 0:00:05]} e5 {[%emt 0:00:04]} 2. Nf3 {[%emt 0:00:04]} Nc6 {[%emt 0:00:05]} 3. Bc4 {[%emt 0:00:03]} Bc5 {[%emt 0:00:08]} 4. c3 {[%emt 0:00:05]} Nf6 {[%emt 0:00:04]} 5. d3 {[%emt 0:00:04]} d6 {[%emt 0:00:20]} 6. Bg5 {[%emt 0:00:05]} h6 {[%emt 0:00:36][%cal Bh7h6,Bh6h5,Bh5h4][%mdl 32]} 7. Bh4 {[%emt 0:00:04]} a6 {[%emt 0:06:18]} 8. a4 {[%emt 0:00:36]} Ba7 {[%emt 0:01:36]} 9. Nbd2 {[%emt 0:00:21]} g5 {[%emt 0:05:35]} 10. Bg3 {[%emt 0:00:35] The position is equal.} Nh7 {[%emt 0:00:11]} 11. b4 {[%emt 0:08:21][%cal Bb2b4,Bb4b5][%mdl 32]} h5 {[%emt 0:04:27] ...h4 is the strong threat.} 12. h3 {[%emt 0:02:59]} Qf6 {[%emt 0:04:33]} 13. b5 {[%emt 0:04:27]} Na5 {[%emt 0:11:56] [#] ...h4 would now be deadly.} 14. d4 $1 {[%emt 0:04:00]} exd4 {[%emt 0:13:15]} (14... Nxc4 15. Nxc4) 15. Nxd4 {[%emt 0:00:34]} (15. e5 $1 $14 Qg6 16. exd6 (16. cxd4 Nxc4 17. Nxc4 g4 $11) (16. Nxd4 Nxc4 17. Nxc4 h4 $11) 16... Nxc4 (16... dxc3 17. Qe2+ Kf8 18. O-O $14) 17. Nxc4 Qe6+ 18. Qe2) 15... h4 $11 {[%emt 0:06:30]} 16. Bh2 {[%emt 0:01:13]} Bxd4 {[%emt 0:00:37]} 17. cxd4 {[%emt 0:00:05]} Qxd4 {[%emt 0:00:25]} 18. Be2 {[%emt 0:09:58]} O-O {[%emt 0:09:00]} 19. O-O {[%emt 0:01:42]} Be6 {[%emt 0:00:06]} 20. Qc2 {[%emt 0:07:01]} axb5 {[%emt 0:00:28]} 21. axb5 {[%emt 0:01:44]} b6 {[%emt 0:00:28] [#]} 22. Ra3 $1 {[%emt 0:07:47][%cal Oa3d3][%mdl 1024] White has strong compensation.} Rac8 {[%emt 0:12:52]} 23. Rc3 {[%emt 0:03:09]} f5 $2 {[%emt 0:06:48] [#]} (23... Nb7 $16 24. e5 (24. Rxc7 $2 Rxc7 25. Qxc7 Qxd2 $19) (24. Nf3 Qg7 $18) 24... Nc5) 24. e5 $1 $18 {[%emt 0:02:56]} (24. Rxc7 $2 Rxc7 25. Qxc7 Qxd2 $19) (24. exf5 Bxf5 25. Nf3 Qg7 $16) 24... d5 {[%emt 0:03:20]} 25. Nf3 {[%emt 0:05:37]} (25. Rxc7 g4 (25... Rxc7 26. Qxc7 Qxd2 27. Qxb6 $11) 26. hxg4 Rxc7 27. Qxc7 fxg4 $17 (27... Qxd2 28. Qxb6 Qxe2 29. Qxe6+ Kh8 30. Qxd5 $15)) 25... Qb4 {[%emt 0:00:12]} 26. Rd1 {[%emt 0:01:25][%cal Of3d4] Strongly threatening Nd4!} (26. Rxc7 $6 Rfe8 27. Ra1 Rxc7 28. Qxc7 Qb2 $18) 26... Qe7 {[%emt 0:10:47]} 27. Nd4 {[%emt 0:00:24]} Kh8 {[%emt 0:00:15]} 28. Bf3 {[%emt 0:01:59][%cal Be2f3,Bf3d5,Bd5e6][%mdl 32] Black must now prevent Nxe6.} f4 {[%emt 0:00:03][%cal Bf5f4,Bf4e3,Be3f2][%mdl 32]} 29. Nxe6 {[%emt 0:03:09]} Qxe6 {[%emt 0:00:04]} 30. Qe2 {[%emt 0:07:57][%cal Of3g4]} Rce8 {[%emt 0:01:04]} 31. Bxd5 {[%emt 0:01:12] White is more active.} (31. Rxc7 $6 Qxe5 32. Qxe5+ Rxe5 $11) 31... Qxe5 {[%emt 0:00:09][%mdl 8192] [#]} (31... Qf5 $16) 32. Re3 $3 {[%emt 0:00:38][%mdl 512] White is clearly winning.} fxe3 {[%emt 0:00:12]} 33. Bxe5+ {[%emt 0:00:03]} Rxe5 {[%emt 0:00:02]} 34. Qb2 {[%emt 0:05:55]} exf2+ {[%emt 0:01:30]} 35. Kf1 {[%emt 0:00:02]} Rff5 {[%emt 0:02:35]} 36. Be6 {[%emt 0:01:05]} Nf6 {[%emt 0:00:06]} 37. Bxf5 {[%emt 0:00:08]} Nc4 {[%emt 0:00:03]} 38. Rd8+ {[%emt 0:00:24]} (38. Qxf2 Rxf5 39. Qxf5 (39. Rd8+ $2 Kg7 $19) 39... Ne3+ 40. Kg1 Nxf5 $16) 38... Kg7 {[%emt 0:00:08]} 39. Qd4 {[%emt 0:00:25] Weighted Error Value: White=0.11 (very precise) /Black=0.19 (very precise) .  Loses game:     	---       	Black=1      Mistake:       	White=1     	Black=1      Inaccurate:     	White=1     	Black=3      OK:         	White=13    	Black=11     Best:        	White=2     	Black=1      Strong:       	White=1     	---        Brilliant:      	White=1     	---} (39. Qxf2 $2 {loses.} Rxf5 (39... Rxb5 $2 {perishes.} 40. Bd3 $18) 40. Rc8 (40. Rg8+ $2 Kxg8 41. Qxf5 Ne3+ 42. Ke2 Nxf5 $19) 40... Rxf2+ $19) 1-0

[Event "3rd President Cup-A 2024"]
[Site "Tashkent"]
[Date "2024.11.25"]
[Round "5.13"]
[White "Pranesh M"]
[Black "Uskov, Artem"]
[Result "1-0"]
[ECO "C54"]
[WhiteElo "2580"]
[BlackElo "2430"]
[Annotator "TA"]
[PlyCount "81"]
[EventDate "2024.11.22"]
[EventType "swiss"]
[EventCountry "UZB"]
[SourceTitle "playchess.com"]
[Source "ChessBase"]
[SourceQuality "1"]
[TimeControl "5400+30"]

{[%evp 11,81,5,18,10,18,12,0,0,0,0,8,0,18,24,15,0,11,0,0,0,10,16,37,25,45,30,21,10,25,35,39,51,62,70,88,62,79,70,129,128,148,76,130,118,140,82,90,60,46,52,49,29,16,14,147,162,143,126,515,503,532,534,1416,1364,29982,29983,29992,29992,29996,29997,29997,29998]} 1. e4 {[%emt 1:05:24]} e5 {[%emt 1:06:28]} 2. Nf3 {[%emt 0:00:30]} Nc6 {[%emt 0:00:30]} 3. Bc4 {[%emt 0:00:30]} Bc5 {[%emt 0:00:30]} 4. c3 {[%emt 0:00:30]} Nf6 {[%emt 0:00:30]} 5. d3 {[%emt 0:00:30]} O-O {[%emt 0:00:30]} 6. b4 {[%emt 0:00:30]} Be7 {[%emt 0:00:30]} 7. Nbd2 {[%emt 0:00:30]} d5 {[%emt 0:00:30]} 8. Bb3 {[%emt 0:00:30]} a6 {[%emt 0:00:30]} 9. Bb2 {[%emt 0:00:30] The position is equal.} Bg4 {[%emt 0:00:30]} 10. Qc2 {[%emt 0:00:30]} Qd7 {[%emt 0:00:30]} 11. h3 {[%emt 0:00:30]} Bh5 {[%emt 0:00:30]} 12. O-O {[%emt 0:00:30]} Rad8 {[%emt 0:00:30]} 13. a4 {[%emt 0:00:30]} b5 {[%emt 0:00:30]} 14. axb5 {[%emt 0:00:30]} axb5 {[%emt 0:00:30]} 15. Ra6 {[%emt 0:00:30]} dxe4 {[%emt 0:00:30]} 16. dxe4 {[%emt 0:00:30]} Rfe8 {[%emt 0:00:30]} 17. Re1 {[%emt 0:00:30]} Bf8 {[%emt 0:00:30]} 18. Bc1 {[%emt 0:00:30]} Nb8 {[%emt 0:00:30]} 19. Ra7 {[%emt 0:00:30]} Qc8 {[%emt 0:00:30]} 20. Qa2 {[%emt 0:00:30]} Nc6 {[%emt 0:00:30] Wards off Ra5} 21. Ra3 {[%emt 0:00:30]} Nb8 {[%emt 0:00:30]} 22. Ra5 {[%emt 0:00:30]} c6 {[%emt 0:00:30]} 23. Nf1 {[%emt 0:00:30][%cal Bd2f1,Bf1g3,Bg3f5,Bf5h4,Bh4f3][%mdl 32]} c5 {[%emt 0:00:30]} 24. bxc5 {[%emt 0:00:30]} Qxc5 {[%emt 0:00:30]} (24... Rd7 $14) 25. Be3 {[%emt 0:00:30]} Qxc3 {[%emt 0:00:30]} 26. Rc1 {[%emt 0:00:30]} (26. Ng3 $142 Bg6 (26... Bxf3 $2 27. Bxf7+ Kh8 28. Rc1 $18) 27. Rxb5) 26... Qb4 $16 {[%emt 0:00:30]} 27. Ng3 {[%emt 0:00:30] Hoping for Nxh5.} Bg6 {[%emt 0:00:30][%cal Od8d3] [#]} 28. Ra7 {[%emt 0:00:30]} (28. Bd2 $142 $1 {[%cal Rd2b4]} Qd6 29. Rxb5) 28... Re7 {[%emt 0:00:30]} 29. Ng5 {[%emt 0:00:30]} Rxa7 {[%emt 0:00:30]} 30. Bxa7 {[%emt 0:00:30]} Qe7 {[%emt 0:00:30]} 31. Nf5 $36 {[%emt 0:00:30][%mdl 2048] White has some pressure.} Qb7 {[%emt 0:00:30]} 32. Nh4 {[%emt 0:00:30] Nxg6 is the strong threat.} Bh5 {[%emt 0:00:30]} (32... Nxe4 $11 33. Nxg6 Nxg5 34. Nxe5 Bd6) 33. Bxb8 {[%emt 0:00:30]} Rxb8 {[%emt 0:00:30] [#]} 34. g4 $1 {[%emt 0:00:30] White is more active.} Nxg4 {[%emt 0:00:30][%mdl 8192] This move loses the game for Black.} 35. hxg4 $18 {[%emt 0:00:30]} Qe7 {[%emt 0:00:30]} 36. Nhf3 {[%emt 0:00:30]} Bg6 {[%emt 0:00:30]} 37. Rc6 {[%emt 0:00:30] Against Qf6} b4 {[%emt 0:00:30] [#]} 38. Rxg6 $1 {[%emt 0:00:30][%mdl 512] White mates.} hxg6 {[%emt 0:00:30] Black is weak on the light squares} (38... h6 39. Nxf7) 39. Kg2 {[%emt 0:00:30]} Qf6 {[%emt 0:00:30]} 40. Bxf7+ {[%emt 0:00:30]} Kh8 {[%emt 0:00:30]} 41. Qa1 {[%emt 0:00:30] Weighted Error Value: White=0.09 (flawless) /Black=0.46.  Loses game:     	---       	Black=1      Mistake:       	White=2     	Black=2      Inaccurate:     	White=1     	Black=2      OK:         	White=11    	Black=9      Best:        	White=2     	---        Strong:       	White=1     	---} 1-0

[Event "3rd President Cup-A 2024"]
[Site "Tashkent"]
[Date "2024.11.25"]
[Round "5.14"]
[White "Raja Rithvik R"]
[Black "Soham Kamotra"]
[Result "1/2-1/2"]
[ECO "B66"]
[WhiteElo "2528"]
[BlackElo "2420"]
[Annotator "TA"]
[PlyCount "71"]
[EventDate "2024.11.22"]
[EventType "swiss"]
[EventCountry "UZB"]
[SourceTitle "playchess.com"]
[Source "ChessBase"]
[SourceQuality "1"]
[TimeControl "5400+30"]

{[%evp 15,71,42,35,32,20,7,26,12,26,23,28,26,41,23,30,34,57,0,43,39,26,32,32,44,31,20,28,29,31,35,24,23,37,21,18,16,22,25,12,0,52,57,72,83,72,75,71,79,73,0,31,0,0,0,0,-108,-93,-137]} 1. e4 {[%emt 0:01:26]} c5 {[%emt 0:00:10]} 2. Nf3 {[%emt 0:00:08]} d6 {[%emt 0:00:06]} 3. d4 {[%emt 0:00:23]} cxd4 {[%emt 0:00:08]} 4. Nxd4 {[%emt 0:00:05]} Nf6 {[%emt 0:00:06]} 5. Nc3 {[%emt 0:00:04]} Nc6 {[%emt 0:00:07]} 6. Bg5 {[%emt 0:00:39]} e6 {[%emt 0:00:07]} 7. Qd2 {[%emt 0:00:25]} a6 {[%emt 0:00:09]} 8. O-O-O {[%emt 0:00:12]} Be7 {[%emt 0:00:06]} 9. Kb1 {[%emt 0:04:22]} Bd7 {[%emt 0:02:07][%cal Bc8d7,Bd7c6,Bc6b7][%mdl 32]} 10. Nxc6 {[%emt 0:00:08]} Bxc6 {[%emt 0:00:06]} 11. f3 {[%emt 0:00:06] White has an edge.} h6 {[%emt 0:08:03]} 12. Be3 {[%emt 0:00:18]} Qc7 {[%emt 0:02:09]} 13. h4 {[%emt 0:00:57]} b5 {[%emt 0:04:45]} 14. Ne2 {[%emt 0:01:05]} Bb7 {[%emt 0:25:15]} 15. Nd4 {[%emt 0:00:41]} Nd7 {[%emt 0:01:02]} 16. g4 {[%emt 0:18:38]} (16. c4 $1 $14) 16... Ne5 {[%emt 0:05:25]} 17. Qe1 {[%emt 0:11:13]} Rc8 {[%emt 0:06:56][%cal Oe5f3]} 18. Qg3 {[%emt 0:13:06]} d5 {[%emt 0:08:28]} 19. Bf4 {[%emt 0:16:06]} Bd6 {[%emt 0:01:53]} 20. Rh2 {[%emt 0:00:21]} Nc4 {[%emt 0:02:30]} (20... dxe4 21. Bxb5+ Ke7 (21... axb5 $2 22. Nxb5 Nxf3 23. Nxc7+ $18) 22. fxe4 $16) 21. Bxd6 {[%emt 0:00:34]} Qxd6 {[%emt 0:00:07]} 22. Qxd6 {[%emt 0:02:22]} Nxd6 {[%emt 0:00:11]} 23. e5 {[%emt 0:03:43]} Nc4 {[%emt 0:00:06]} 24. Re1 {[%emt 0:00:08]} h5 {[%emt 0:01:43]} 25. gxh5 {[%emt 0:02:24]} Rxh5 {[%emt 0:00:11]} 26. f4 {[%emt 0:00:04][%cal Bf3f4,Bf4f5][%mdl 32]} g6 {[%emt 0:01:50]} 27. b3 {[%emt 0:01:34][%cal Of1e2] [#] Hoping for Be2!} Nb6 {[%emt 0:02:33]} (27... Na5 $1 $11) 28. Be2 $14 {[%emt 0:01:08]} Rh6 {[%emt 0:00:34]} 29. h5 {[%emt 0:03:27] aiming for Rhh1.} Ke7 {[%emt 0:00:07] [#]} 30. Rg2 $1 {[%emt 0:01:24] Black must now prevent hxg6.} gxh5 {[%emt 0:06:59]} 31. f5 {[%emt 0:00:48]} Rf8 {[%emt 0:00:05]} 32. Rh1 {[%emt 0:07:31] White is much more active.} (32. Rg5 $16 {fxe6 would now be deadly.} h4 33. f6+ Kd8 34. Bh5) 32... Nd7 {[%emt 0:09:49]} 33. Rg5 {[%emt 0:06:50]} h4 {[%emt 0:05:01]} 34. Bh5 {[%emt 0:00:18] Strongly threatening fxe6.} Rfh8 {[%emt 0:01:42]} (34... Nxe5 35. fxe6 (35. Rxh4 $2 Kf6 $19) 35... Rxe6 36. Nxe6 (36. Rxh4 Kd6 $16) 36... Kxe6 37. Rxh4 $11) 35. Bxf7 {[%emt 0:01:20]} Nxe5 $17 {[%emt 0:00:37]} ({Inferior is} 35... Kxf7 36. fxe6+ Ke8 (36... Rxe6 $2 37. Rf1+ Ke8 38. Nxe6 $18) 37. exd7+ Kxd7 38. Rg7+ Kc8 39. e6 $16 (39. Rh3 R6h7 $14)) 36. fxe6 {[%emt 0:02:46] Weighted Error Value: White=0.14 (very precise) /Black=0.08 (flawless) .  Mistake:       	White=3     	Black=1      Inaccurate:     	White=1     	Black=2      OK:         	White=13    	Black=12     Best:        	White=3     	Black=3      Strong:       	White=1     	---} (36. Bxe6 $2 {too greedy.} Kf6 37. Rg2 h3 $19) 1/2-1/2